fUST/lending_fUST_20250813
["ID","MTS","AMOUNT","RATE_DAILY","PERIOD"]
[378975677,1755088238869,-398.38,0.0002369,2]
[378975678,1755088238881,-500.0,0.0002369,2]
[378975679,1755088238893,-500.0,0.0002369,2]
[378975680,1755088238903,-360.0,0.0002369,2]
[378975681,1755088238912,-289.76601394,0.0002369,2]
[378975682,1755088238923,-500.0,0.0002369,2]
[378975683,1755088238933,-500.0,0.0002369,2]
[378975684,1755088238943,-225.55973109,0.0002369,2]
[378975685,1755088238953,-258.39160662,0.0002369,2]
[378975686,1755088238964,-500.0,0.0002369,2]
[378975687,1755088238974,-500.0,0.0002369,2]
[378975688,1755088238984,-500.0,0.0002369,2]
[378975689,1755088238993,-500.0,0.0002369,2]
[378975690,1755088239003,-500.0,0.0002369,2]
[378975691,1755088239012,-455.766098,0.0002369,2]
[378975692,1755088239022,-161.46357308,0.0002369,2]
[378975693,1755088239032,-500.0,0.0002369,2]
[378975694,1755088239041,-500.0,0.0002369,2]
[378975695,1755088239051,-500.0,0.0002369,2]
[378975696,1755088239061,-500.0,0.0002369,2]
[378975697,1755088239072,-500.0,0.0002369,2]
[378975698,1755088239081,-500.0,0.0002369,2]
[378975699,1755088239091,-500.0,0.0002369,2]
[378975700,1755088239100,-500.0,0.0002369,2]
[378975701,1755088239110,-500.0,0.0002369,2]
[378975702,1755088239119,-500.0,0.0002369,2]
[378975703,1755088239128,-151.0,0.00023691,2]
[378975704,1755088239138,-151.0,0.00023691,2]
[378975705,1755088239147,-151.0,0.00023691,2]
[378975706,1755088239157,-151.0,0.00023691,2]
[378975707,1755088239166,-2183.31810187,0.00023691,2]
[378975708,1755088239176,-151.0,0.00023691,2]
[378975709,1755088239185,-151.0,0.00023691,2]
[378975710,1755088239194,-151.0,0.00023691,2]
[378975711,1755088239204,-151.0,0.00023691,2]
[378975712,1755088239214,-151.0,0.00023691,2]
[378975713,1755088239223,-151.0,0.00023691,2]
[378975714,1755088239233,-151.0,0.00023691,2]
[378975715,1755088239243,-151.0,0.00023691,2]
[378975716,1755088239252,-151.0,0.00023691,2]
[378975717,1755088239261,-151.0,0.00023691,2]
[378975718,1755088239271,-151.0,0.00023691,2]
[378975719,1755088239281,-151.0,0.00023691,2]
[378975720,1755088239290,-151.0,0.00023691,2]
[378975721,1755088239447,-151.0,0.00023691,2]
[378975722,1755088239458,-151.0,0.00023691,2]
[378975723,1755088239467,-151.0,0.00023691,2]
[378975724,1755088239477,-151.0,0.00023691,2]
[378975725,1755088239487,-151.0,0.00023691,2]
[378975726,1755088239496,-151.0,0.00023691,2]
[378975727,1755088239506,-151.0,0.00023691,2]
[378975728,1755088239516,-151.0,0.00023691,2]
[378975729,1755088239525,-151.0,0.00023691,2]
[378975730,1755088239535,-151.0,0.00023691,2]
[378975731,1755088239545,-151.0,0.00023691,2]
[378975732,1755088239555,-151.0,0.00023691,2]
[378975733,1755088239565,-151.0,0.00023691,2]
[378975734,1755088239576,-151.0,0.00023691,2]
[378975735,1755088239585,-151.0,0.00023691,2]
[378975736,1755088239595,-151.0,0.00023691,2]
[378975737,1755088239604,-151.0,0.00023691,2]
[378975738,1755088239613,-151.0,0.00023691,2]
[378975739,1755088239623,-151.0,0.00023691,2]
[378975740,1755088239633,-151.0,0.00023691,2]
[378975741,1755088239642,-151.0,0.00023691,2]
[378975742,1755088239651,-151.0,0.00023691,2]
[378975743,1755088239661,-151.0,0.00023691,2]
[378975744,1755088239670,-151.0,0.00023691,2]
[378975745,1755088239680,-151.0,0.00023691,2]
[378975746,1755088239689,-151.0,0.00023691,2]
[378975747,1755088239699,-151.0,0.00023691,2]
[378975748,1755088239709,-151.0,0.00023691,2]
[378975749,1755088239718,-151.0,0.00023691,2]
[378975750,1755088239728,-151.0,0.00023691,2]
[378975751,1755088239738,-151.0,0.00023691,2]
[378975752,1755088239748,-151.0,0.00023691,2]
[378975753,1755088239758,-151.0,0.00023691,2]
[378975754,1755088239768,-151.0,0.00023691,2]
[378975755,1755088239777,-151.0,0.00023691,2]
[378975756,1755088239787,-151.0,0.00023691,2]
[378975757,1755088239796,-151.0,0.00023691,2]
[378975758,1755088239805,-197.59412866,0.00023691,2]
[378975759,1755088239815,-151.0,0.00023691,2]
[378975760,1755088239826,-17842.522448,0.00023691,2]
[378975761,1755088239836,-151.0,0.00023691,2]
[378975762,1755088239846,-151.0,0.00023691,2]
[378975763,1755088239856,-151.0,0.00023691,2]
[378975764,1755088239866,-151.0,0.00023691,2]
[378975765,1755088239876,-151.0,0.00023691,2]
[378975766,1755088239888,-151.0,0.00023691,2]
[378975767,1755088239898,-151.0,0.00023691,2]
[378975768,1755088239907,-151.0,0.00023691,2]
[378975769,1755088239918,-151.0,0.00023691,2]
[378975770,1755088239927,-151.0,0.00023691,2]
[378975771,1755088239937,-151.0,0.00023691,2]
[378975772,1755088239946,-151.0,0.00023691,2]
[378975773,1755088239955,-151.0,0.00023691,2]
[378975774,1755088239964,-151.0,0.00023691,2]
[378975775,1755088239974,-151.0,0.00023691,2]
[378975776,1755088239983,-151.0,0.00023691,2]
[378975777,1755088239992,-151.0,0.00023691,2]
[378975778,1755088240001,-151.0,0.00023691,2]
[378975779,1755088240011,-151.0,0.00023691,2]
[378975780,1755088240020,-500.0,0.00023691,2]
[378975781,1755088240030,-151.0,0.00023691,2]
[378975783,1755088240039,-151.0,0.00023691,2]
[378975784,1755088240049,-500.0,0.00023691,2]
[378975785,1755088240058,-151.0,0.00023691,2]
[378975787,1755088240068,-500.0,0.00023691,2]
[378975788,1755088240079,-151.0,0.00023691,2]
[378975790,1755088240088,-300.0,0.00023691,2]
[378975791,1755088240097,-500.0,0.00023691,2]
[378975792,1755088240107,-151.0,0.00023691,2]
[378975793,1755088240117,-300.0,0.00023691,2]
[378975794,1755088240126,-151.0,0.00023691,2]
[378975795,1755088240136,-300.0,0.00023691,2]
[378975797,1755088240146,-151.0,0.00023691,2]
[378975799,1755088240155,-300.0,0.00023691,2]
[378975800,1755088240165,-300.0,0.00023691,2]
[378975802,1755088240175,-151.0,0.00023691,2]
[378975803,1755088240184,-300.0,0.00023691,2]
[378975804,1755088240193,-151.0,0.00023691,2]
[378975806,1755088240203,-300.0,0.00023691,2]
[378975807,1755088240212,-500.0,0.00023691,2]
[378975808,1755088240221,-300.0,0.00023691,2]
[378975809,1755088240231,-500.0,0.00023691,2]
[378975810,1755088240240,-151.0,0.00023691,2]
[378975811,1755088240250,-500.0,0.00023691,2]
[378975813,1755088240259,-300.0,0.00023691,2]
[378975814,1755088240269,-265.61602389,0.00023691,2]
[378975816,1755088240279,-500.0,0.00023691,2]
[378975817,1755088240288,-151.0,0.00023691,2]
[378975818,1755088240298,-300.0,0.00023691,2]
[378975819,1755088240308,-500.0,0.00023691,2]
[378975820,1755088240317,-151.0,0.00023691,2]
[378975821,1755088240329,-300.0,0.00023691,2]
[378975822,1755088240339,-500.0,0.00023691,2]
[378975823,1755088240350,-151.0,0.00023691,2]
[378975824,1755088240359,-500.0,0.00023691,2]
[378975825,1755088240369,-300.0,0.00023691,2]
[378975827,1755088240379,-151.0,0.00023691,2]
[378975828,1755088240388,-500.0,0.00023691,2]
[378975830,1755088240398,-300.0,0.00023691,2]
[378975832,1755088240407,-151.0,0.00023691,2]
[378975833,1755088240417,-500.0,0.00023691,2]
[378975835,1755088240427,-151.0,0.00023691,2]
[378975836,1755088240436,-300.0,0.00023691,2]
[378975838,1755088240445,-500.0,0.00023691,2]
[378975839,1755088240455,-300.0,0.00023691,2]
[378975840,1755088240465,-151.0,0.00023691,2]
[378975841,1755088240474,-500.0,0.00023691,2]
[378975842,1755088240484,-303.37780865,0.00023691,2]
[378975844,1755088240495,-500.0,0.00023691,2]
[378975846,1755088240505,-151.0,0.00023691,2]
[378975847,1755088240515,-151.0,0.00023691,2]
[378975848,1755088240524,-500.0,0.00023691,2]
[378975849,1755088240534,-151.0,0.00023691,2]
[378975850,1755088240544,-151.0,0.00023691,2]
[378975851,1755088240554,-151.0,0.00023691,2]
[378975852,1755088240564,-250.0,0.00023691,2]
[378975853,1755088240575,-250.0,0.00023691,2]
[378975854,1755088240585,-151.0,0.00023691,2]
[378975855,1755088240595,-151.0,0.00023691,2]
[378975856,1755088240605,-250.0,0.00023691,2]
[378975857,1755088240615,-256.43342021,0.00023691,2]
[378975858,1755088240625,-151.0,0.00023691,2]
[378975859,1755088240634,-500.0,0.00023691,2]
[378975860,1755088240643,-151.0,0.00023691,2]
[378975861,1755088240652,-245.0,0.00023691,2]
[378975862,1755088240662,-6529.92,0.000237,2]
[378975863,1755088240672,-2264.10087163,0.00023746,2]
[378975864,1755088240681,-160.0,0.00023835,2]
[378975865,1755088240691,-232.03317797,0.00023836,2]
[378975866,1755088240701,-215.55264861,0.00023836,2]
[378975867,1755088240710,-843.29866057,0.00023836,2]
[378975868,1755088240719,-216.72950928,0.00023836,2]
[378975869,1755088240729,-200.926,0.00023836,5]
[378975870,1755088240738,-160.0,0.0002387,2]
[378975871,1755088240749,-395.72754741,0.0002388,2]
[378975872,1755088240758,-116.81980296,0.00023893,2]
[378975873,1755088241259,-4040.92561126,0.00023893,2]
[378975874,1755088241269,-332.89228092,0.000239,2]
[378975875,1755088241280,-972.0,0.00023933,2]
[378975876,1755088241290,-2151.0,0.00023933,2]
[378975877,1755088241299,-636.0,0.00023933,2]
[378975878,1755088241309,-408.0,0.00023933,2]
[378975879,1755088241319,-245.0,0.00023965,2]
[378975880,1755088241330,-442.65056221,0.00023974,2]
[378975881,1755088241340,-151.0,0.00024095,7]
[378975882,1755088241349,-500.0,0.00024095,5]
[378975883,1755088241360,-151.486076,0.00024174,7]
[378975884,1755088241370,-151.0,0.00024174,7]
[378975885,1755088241379,-174.166731,0.00024174,7]
[378975886,1755088241388,-151.0,0.00024174,7]
[378975887,1755088241398,-4157.74541422,0.00024196,2]
[378975888,1755088241408,-181.66234938,0.00024379,2]
[378975889,1755088241417,-30.61003749,0.00024453,2]
[378975890,1755088241430,-6177.46807638,0.00024453,2]
[378975891,1755088241439,-2093.43388781,0.00024498,2]
[378975892,1755088241451,-2064.31152641,0.00024498,2]
[378975893,1755088241461,-326.0,0.00024566,2]
[378975894,1755088241471,-500.0,0.00024643,5]
[378975895,1755088241480,-280.0,0.00024658,2]
[378975896,1755088241490,-151.0,0.000247,7]
[378975897,1755088241500,-558.06212756,0.000247,7]
[378975898,1755088241510,-198.68781009,0.000248,10]
[378975899,1755088241523,-51.31218991,0.000248,10]
[378975900,1755088241532,-4157.74541422,0.000248,2]
[378975901,1755088241543,-5773.15264203,0.0002482,2]
[378975902,1755088241554,-483.2568244,0.0002482,2]
[378975903,1755088241566,-326.75342642,0.0002482,2]
[378975904,1755088241584,-961.42535887,0.0002482,2]
[378975905,1755088241598,-510.97540017,0.00024873,2]
[378975906,1755088241607,-500.0,0.00024873,2]
[378975907,1755088241619,-500.0,0.00024873,2]
[378975908,1755088241630,-472.1751104,0.00024873,2]
[378975909,1755088241641,-500.0,0.00024873,2]
[378975910,1755088241657,-500.0,0.00024873,2]
[378975911,1755088241667,-500.0,0.00024873,2]
[378975912,1755088241677,-259.92604748,0.00024873,2]
[378975913,1755088241686,-500.0,0.00024873,2]
[378975914,1755088241695,-198.31463455,0.00024873,2]
[378975915,1755088241704,-500.0,0.00024873,2]
[378975916,1755088241715,-500.0,0.00024873,2]
[378975917,1755088241724,-308.71537417,0.00024899,2]
[378975918,1755088241734,-842.16672184,0.00024899,2]
[378975919,1755088241743,-842.16672184,0.00024899,2]
[378975920,1755088241753,-842.16672184,0.00024899,2]
[378975921,1755088241763,-842.16672184,0.00024899,2]
[378975922,1755088241773,-76.28512901,0.00024899,2]
[378975923,1755088241785,-765.88159283,0.00024899,2]
[378975924,1755088241795,-132.70912082,0.00024899,2]
[378975925,1755088241807,-662.46728706,0.00024899,2]
[378975926,1755088241820,-46.99031396,0.00024899,2]
[378975927,1755088241833,-842.16672184,0.00024899,2]
[378975928,1755088241842,-541.53931833,0.00024899,2]
[378975929,1755088241854,-300.62740351,0.00024899,2]
[378975930,1755088241863,-463.88259649,0.00024899,2]
[378975931,1755088241875,-378.28412535,0.00024899,2]
[378975932,1755088241885,-842.16672184,0.00024899,2]
[378975933,1755088241895,-842.16672184,0.00024899,2]
[378975934,1755088241905,-842.16672184,0.00024899,2]
[378975935,1755088241916,-842.16672184,0.00024899,2]
[378975936,1755088241930,-842.16672184,0.00024899,2]
[378975937,1755088241944,-842.16672185,0.00024899,2]
[378975938,1755088241957,-842.16672185,0.00024899,2]
[378975939,1755088241966,-842.16672185,0.00024899,2]
[378975940,1755088241976,-514.95531132,0.00024899,2]
[378975941,1755088242018,-327.21141053,0.00024899,2]
[378975942,1755088242029,-842.16672185,0.00024899,2]
[378975943,1755088242038,-842.16672185,0.00024899,2]
[378975944,1755088242048,-842.16672185,0.00024899,2]
[378975945,1755088242057,-842.16672185,0.00024899,2]
[378975946,1755088242067,-842.16672185,0.00024899,2]
[378975947,1755088242077,-842.16672185,0.00024899,2]
[378975948,1755088242087,-842.16672185,0.00024899,2]
[378975949,1755088242096,-13498.25,0.000249,7]
[378975950,1755088242107,-152.27293,0.000249,7]
[378975951,1755088242122,-151.0,0.000249,7]
[378975952,1755088242131,-151.0,0.000249,7]
[378975953,1755088242141,-151.0,0.000249,7]
[378975954,1755088242150,-151.0,0.000249,7]
[378975955,1755088242160,-151.0,0.000249,7]
[378975956,1755088242169,-151.0,0.000249,7]
[378975957,1755088242179,-151.0,0.000249,7]
[378975958,1755088242188,-151.0,0.000249,7]
[378975959,1755088242198,-151.0,0.000249,7]
[378975960,1755088242207,-151.0,0.000249,7]
[378975961,1755088242216,-150.95,0.000249,7]
[378975962,1755088242226,-8609.26,0.000249,7]
[378975963,1755088242235,-151.0,0.000249,7]
[378975964,1755088242244,-151.0,0.000249,7]
[378975965,1755088242253,-151.0,0.000249,7]
[378975966,1755088242263,-151.0,0.000249,7]
[378975967,1755088242272,-151.0,0.000249,7]
[378975968,1755088242281,-301.80655,0.000249,7]
[378975969,1755088242291,-151.0,0.000249,7]
[378975970,1755088242300,-151.0,0.000249,7]
[378975971,1755088242309,-151.0,0.000249,7]
[378975972,1755088242319,-151.838959,0.000249,7]
[378975973,1755088242329,-151.216916,0.000249,7]
[378975974,1755088242339,-151.152792,0.000249,7]
[378975975,1755088242348,-151.0,0.000249,7]
[378975976,1755088242358,-151.0,0.000249,7]
[378975977,1755088242367,-151.0,0.000249,7]
[378975978,1755088242377,-151.0,0.000249,7]
[378975979,1755088242386,-151.0,0.000249,7]
[378975980,1755088242396,-151.0,0.000249,7]
[378975981,1755088242406,-151.0,0.000249,7]
[378975982,1755088242415,-151.0,0.000249,7]
[378975983,1755088242425,-250.0,0.000249,10]
[378975984,1755088242434,-152.159054,0.000249,7]
[378975985,1755088242443,-151.0,0.000249,7]
[378975986,1755088242453,-237.751414,0.000249,7]
[378975987,1755088242462,-181.564175,0.000249,7]
[378975988,1755088242471,-151.0,0.000249,7]
[378975989,1755088242481,-216.72950928,0.000249,7]
[378975990,1755088242490,-823090.069618,0.000249,2]
[378975991,1755088242500,-843.29866057,0.000249,7]
[378975992,1755088242510,-151.0,0.000249,7]
[378975993,1755088242519,-151.0,0.000249,7]
[378975994,1755088242528,-160.0,0.000249,7]
[378975995,1755088242538,-232.03317797,0.000249,7]
[378975996,1755088242548,-151.0,0.000249,7]
[378975997,1755088242557,-151.0,0.000249,7]
[378975998,1755088242565,-151.0,0.000249,7]
[378975999,1755088242575,-164.492334,0.000249,7]
[378976000,1755088242584,-160.0,0.000249,7]
[378976001,1755088242594,-151.0,0.000249,7]
[378976002,1755088242603,-151.0,0.000249,7]
[378976003,1755088242612,-151.0,0.000249,7]
[378976004,1755088242621,-151.0,0.000249,7]
[378976005,1755088242630,-151.0,0.000249,7]
[378976006,1755088242640,-291.664798,0.000249,7]
[378976007,1755088242650,-2200.0,0.0002492,2]
[378976008,1755088242659,-500.0,0.00024973,2]
[378976009,1755088242669,-151.0,0.0002498,7]
[378976010,1755088242678,-188.645665,0.0002498,7]
[378976011,1755088242687,-151.0,0.0002498,7]
[378976012,1755088242697,-151.0,0.0002498,7]
[378976013,1755088242706,-151.0,0.0002498,7]
[378976014,1755088242715,-251.714054,0.0002498,7]
[378976015,1755088242724,-219.910588,0.0002498,7]
[378976016,1755088242732,-212.732814,0.0002498,7]
[378976017,1755088242740,-43841.65000142,0.0002499,2]
[378976018,1755088242749,-250.0,0.00025,10]
[378976019,1755088242759,-660.17333058,0.0002506,2]
[378976020,1755088242768,-151.0,0.00025074,7]
[378976021,1755088242777,-151.0,0.000251,16]
[378976022,1755088242787,-151.0,0.0002513,7]
[378976023,1755088242796,-151.0,0.0002513,7]
[378976024,1755088242805,-151.0,0.0002513,7]
[378976025,1755088242815,-151.0,0.0002513,7]
[378976026,1755088242827,-151.0,0.0002513,7]
[378976027,1755088242837,-151.0,0.0002513,7]
[378976028,1755088242846,-151.0,0.0002513,7]
[378976029,1755088242856,-151.0,0.0002513,7]
[378976030,1755088242865,-23420.70607385,0.0002514,5]
[378976031,1755088242874,-151.0,0.0002514,7]
[378976032,1755088242886,-151.0,0.0002514,7]
[378976033,1755088242897,-151.0,0.0002514,7]
[378976034,1755088242907,-12343.82831304,0.00025164,2]
[378976035,1755088242916,-500.0,0.00025173,2]
[378976036,1755088242927,-200.0,0.0002518,20]
[378976037,1755088242937,-200.0,0.0002518,20]
[378976038,1755088242946,-200.0,0.0002518,20]
[378976039,1755088242955,-200.0,0.0002518,20]
[378976040,1755088242965,-200.0,0.0002518,20]
[378976041,1755088242975,-200.0,0.0002518,20]
[378976042,1755088242984,-367.0,0.0002518,20]
[378976043,1755088242994,-500.0,0.00025191,5]
[378976044,1755088243004,-151.0,0.00025274,5]
[378976045,1755088243013,-6529.92,0.000253,2]
[378976046,1755088243024,-500.0,0.00025421,2]
[378976047,1755088243034,-500.0,0.00025421,2]
[378976048,1755088243045,-500.0,0.00025421,2]
[378976049,1755088243056,-500.0,0.00025421,2]
[378976051,1755088243066,-500.0,0.00025421,2]
[378976052,1755088243078,-500.41157304,0.00025421,2]
[378976053,1755088243088,-500.0,0.00025421,2]
[378976054,1755088243098,-500.0,0.00025421,2]
[378976056,1755088243107,-1000.0,0.00025521,2]
[378976058,1755088243117,-151.0,0.00025521,7]
[378976059,1755088243126,-151.0,0.00025521,7]
[378976060,1755088243136,-162.90863975,0.00025534,30]
[378976061,1755088243147,-500.0,0.00025739,5]
[378976062,1755088243156,-151.0,0.000258,7]
[378976063,1755088243165,-151.0,0.000258,7]
[378976065,1755088243176,-163.075257,0.00025856,2]
[378976067,1755088243185,-162.90863975,0.00025863,30]
[378976069,1755088243195,-151.0,0.00025905,5]
[378976070,1755088243204,-151.0,0.00025968,7]
[378976071,1755088243214,-151.0,0.00026028,7]
[378976072,1755088243224,-151.0,0.00026028,7]
[378976073,1755088243234,-151.0,0.00026028,7]
[378976074,1755088243244,-151.0,0.00026052,7]
[378976075,1755088243254,-151.0,0.00026052,7]
[378976076,1755088243264,-151.0,0.00026052,7]
[378976078,1755088243274,-151.0,0.00026052,7]
[378976080,1755088243283,-7544.58825172,0.00026059,2]
[378976081,1755088243293,-151.0,0.00026068,7]
[378976082,1755088243302,-500.0,0.00026068,2]
[378976083,1755088243438,-600.0,0.00026125,2]
[378976084,1755088243449,-151.0,0.00026125,7]
[378976085,1755088243459,-151.0,0.00026125,7]
[378976086,1755088243469,-163.075257,0.00026172,10]
[378976087,1755088243479,-200.0,0.0002618,15]
[378976088,1755088243489,-150.95,0.000262,7]
[378976089,1755088243500,-8609.26,0.000262,7]
[378976090,1755088243510,-151.776224,0.00026201,7]
[378976091,1755088243519,-151.0,0.00026201,7]
[378976092,1755088243529,-151.0,0.00026201,7]
[378976093,1755088243539,-151.0,0.00026201,7]
[378976094,1755088243549,-500.0,0.00026287,5]
[378976095,1755088243559,-13498.25,0.000263,7]
[378976096,1755088243568,-216.72950928,0.000263,7]
[378976097,1755088243579,-843.29866057,0.000263,7]
[378976098,1755088243589,-232.03317797,0.000263,7]
[378976099,1755088243598,-151.0,0.000263,7]
[378976100,1755088243608,-160.0,0.000263,7]
[378976101,1755088243617,-151.0,0.000263,7]
[378976103,1755088243627,-151.002145,0.000263,7]
[378976105,1755088243636,-500.0,0.00026342,10]
[378976107,1755088243645,-500.0,0.00026342,10]
[378976108,1755088243655,-151.0,0.00026536,6]
[378976109,1755088243665,-163.075257,0.00026577,7]
[378976110,1755088243674,-6529.92,0.000266,2]
[378976112,1755088243684,-1500.0,0.000266,2]
[378976114,1755088243694,-1500.0,0.000266,2]
[378976116,1755088243704,-1500.0,0.000266,2]
[378976117,1755088243713,-1500.0,0.000266,2]
[378976118,1755088243723,-1500.0,0.000266,2]
[378976119,1755088243733,-1500.0,0.000266,2]
[378976120,1755088243742,-1500.0,0.000266,2]
[378976121,1755088243752,-1500.0,0.000266,2]
[378976123,1755088243761,-1500.0,0.000266,2]
[378976125,1755088243770,-1500.0,0.000266,2]
[378976126,1755088243779,-1500.0,0.000266,2]
[378976127,1755088243788,-365.6,0.000266,2]
[378976128,1755088243797,-151.0,0.000266,7]
[378976129,1755088243807,-151.0,0.000266,7]
[378976130,1755088243816,-1344.0,0.0002678,7]
[378976131,1755088243826,-500.0,0.00026835,5]
[378976132,1755088243835,-163.075257,0.00026915,3]
[378976133,1755088243845,-151.0,0.00026918,7]
[378976134,1755088243854,-237.877796,0.00026918,7]
[378976135,1755088243863,-151.0,0.00026918,7]
[378976136,1755088243873,-12343.82831304,0.00026918,6]
[378976137,1755088243882,-600.0,0.00026931,2]
[378976138,1755088243896,-600.0,0.00026931,2]
[378976139,1755088243907,-972.0,0.00026933,2]
[378976140,1755088243918,-2151.0,0.00026933,2]
[378976141,1755088243929,-636.0,0.00026933,2]
[378976142,1755088243940,-408.0,0.00026933,2]
[378976143,1755088243950,-151.0,0.00027,7]
[378976144,1755088243959,-151.0,0.00027,7]
[378976145,1755088243968,-528.09767282,0.00027,3]
[378976146,1755088243978,-528.09767282,0.00027,3]
[378976147,1755088243988,-417.15472785,0.00027,3]
[378976148,1755088243999,-417.15472785,0.00027,3]
[378976149,1755088244008,-606760.29,0.00027073,9]
[378976150,1755088244018,-16921.75,0.00027073,9]
[378976151,1755088244027,-153836.52,0.00027073,9]
[378976152,1755088244037,-151.0,0.00027167,6]
[378976153,1755088244046,-151.0,0.000272,7]
[378976154,1755088244056,-600.0,0.00027221,2]
[378976155,1755088244066,-3000.0,0.00027297,2]
[378976156,1755088244077,-151.0,0.00027297,7]
[378976157,1755088244087,-3926.22946848,0.00027297,2]
[378976158,1755088244096,-7544.58825172,0.00027297,2]
[378976159,1755088244106,-151.0,0.00027297,7]
[378976160,1755088244115,-151.0,0.00027297,7]
[378976161,1755088244124,-500.0,0.00027373,2]
[378976162,1755088244133,-500.0,0.00027373,2]
[378976163,1755088244143,-411.46417417,0.00027373,2]
[378976164,1755088244153,-500.0,0.00027373,2]
[378976165,1755088244162,-502.04359418,0.00027373,2]
[378976166,1755088244172,-500.0,0.00027373,2]
[378976167,1755088244182,-500.0,0.00027373,2]
[378976168,1755088244192,-204.08884053,0.00027373,2]
[378976169,1755088244201,-500.0,0.00027373,2]
[378976170,1755088244211,-500.0,0.00027373,2]
[378976171,1755088244220,-500.47771889,0.00027373,2]
[378976172,1755088244230,-500.0,0.00027373,2]
[378976173,1755088244239,-500.0,0.00027373,2]
[378976174,1755088244248,-500.0,0.00027373,2]
[378976175,1755088244258,-500.0,0.00027373,2]
[378976176,1755088244268,-500.0,0.00027373,2]
[378976177,1755088244278,-500.0,0.00027373,2]
[378976178,1755088244287,-500.0,0.00027373,2]
[378976179,1755088244297,-500.0,0.00027373,2]
[378976180,1755088244306,-500.0,0.00027373,2]
[378976181,1755088244316,-500.0,0.00027373,2]
[378976182,1755088244326,-500.0,0.00027373,2]
[378976183,1755088244336,-500.0,0.00027373,2]
[378976184,1755088244346,-206.41950611,0.00027373,2]
[378976185,1755088244356,-500.0,0.00027373,2]
[378976186,1755088244366,-500.0,0.00027373,2]
[378976187,1755088244375,-501.48881571,0.00027373,2]
[378976188,1755088244384,-500.0,0.00027373,2]
[378976189,1755088244394,-506.22361131,0.00027373,2]
[378976190,1755088244404,-500.0,0.00027373,2]
[378976191,1755088244414,-500.0,0.00027373,2]
[378976192,1755088244423,-500.0,0.00027373,2]
[378976193,1755088244433,-500.0,0.00027373,2]
[378976194,1755088244443,-500.0,0.00027373,2]
[378976195,1755088244453,-500.0,0.00027373,2]
[378976196,1755088244464,-500.0,0.00027373,2]
[378976197,1755088244473,-500.0,0.00027373,2]
[378976198,1755088244484,-332.03455376,0.00027373,2]
[378976199,1755088244494,-500.0,0.00027373,2]
[378976200,1755088244504,-500.0,0.00027373,2]
[378976201,1755088244514,-151.0,0.00027373,7]
[378976202,1755088244525,-151.0,0.00027373,7]
[378976203,1755088244535,-151.0,0.00027373,7]
[378976204,1755088244544,-151.0,0.00027373,7]
[378976205,1755088244554,-151.0,0.00027373,7]
[378976206,1755088244563,-151.0,0.00027373,7]
[378976207,1755088244573,-151.0,0.00027373,7]
[378976208,1755088244583,-500.0,0.00027383,5]